fUST/lending_fUST_20250429
["ID","MTS","AMOUNT","RATE_DAILY","PERIOD"]
[359292153,1745895058221,-546.75,0.00020547,2]
[359292154,1745895058231,-1024.81,0.00020547,2]
[359292155,1745895058241,-725.57,0.00020547,2]
[359292156,1745895058251,-400.0,0.00020547,2]
[359292157,1745895058261,-532.63,0.00020547,2]
[359292158,1745895058270,-400.0,0.00020547,2]
[359292159,1745895058279,-2190.4,0.00020547,2]
[359292160,1745895058289,-773.49,0.00020547,2]
[359292161,1745895058299,-1123.88,0.00020547,2]
[359292162,1745895058309,-1018.81,0.00020547,2]
[359292163,1745895058319,-446.16,0.00020547,2]
[359292164,1745895058329,-400.0,0.00020547,2]
[359292165,1745895058339,-829.58,0.00020547,2]
[359292166,1745895058348,-939.54,0.00020547,2]
[359292167,1745895058359,-1040.02,0.00020547,2]
[359292168,1745895058371,-400.0,0.00020547,2]
[359292169,1745895058381,-400.0,0.00020547,2]
[359292170,1745895058391,-523.99,0.00020547,2]
[359292171,1745895058404,-400.0,0.00020547,2]
[359292172,1745895058414,-400.0,0.00020547,2]
[359292173,1745895058427,-886.27,0.00020547,2]
[359292174,1745895058437,-1563.19,0.00020547,2]
[359292175,1745895058450,-8641.78,0.00020547,2]
[359292176,1745895058459,-400.0,0.00020547,2]
[359292177,1745895058469,-7203.64,0.00020547,2]
[359292178,1745895058478,-1391.33,0.00020547,2]
[359292179,1745895058488,-474.03,0.00020547,2]
[359292180,1745895058497,-400.0,0.00020547,2]
[359292181,1745895058506,-426.98,0.00020547,2]
[359292182,1745895058515,-2841.42,0.00020547,2]
[359292183,1745895058525,-400.0,0.00020547,2]
[359292184,1745895058534,-400.0,0.00020547,2]
[359292185,1745895058543,-400.0,0.00020547,2]
[359292186,1745895058553,-400.0,0.00020547,2]
[359292187,1745895058563,-400.0,0.00020547,2]
[359292188,1745895058574,-400.0,0.00020547,2]
[359292189,1745895058585,-400.0,0.00020547,2]
[359292190,1745895058596,-400.0,0.00020547,2]
[359292191,1745895058607,-400.0,0.00020547,2]
[359292192,1745895058618,-492.39,0.00020547,2]
[359292193,1745895058629,-400.0,0.00020547,2]
[359292194,1745895058639,-529.61,0.00020547,2]
[359292195,1745895058650,-400.0,0.00020547,2]
[359292196,1745895058661,-862.45,0.00020547,2]
[359292197,1745895058674,-1502.82,0.00020547,2]
[359292198,1745895058686,-688.34,0.00020547,2]
[359292199,1745895058697,-683.34,0.00020547,2]
[359292200,1745895058707,-400.0,0.00020547,2]
[359292201,1745895058717,-922.98,0.00020547,2]
[359292202,1745895058728,-460.66,0.00020547,2]
[359292203,1745895058738,-1731.73,0.00020547,2]
[359292204,1745895058748,-433.20847231,0.00020547,2]
[359292205,1745895058760,-688.59,0.00020547,2]
[359292206,1745895058773,-400.0,0.00020547,2]
[359292207,1745895058783,-896.35,0.00020547,2]
[359292208,1745895058795,-1244.71,0.00020547,2]
[359292209,1745895058807,-400.0,0.00020547,2]
[359292210,1745895058819,-1243.65,0.00020547,2]
[359292211,1745895058830,-400.0,0.00020547,2]
[359292212,1745895058842,-400.0,0.00020547,2]
[359292213,1745895058861,-400.0,0.00020547,2]
[359292214,1745895058875,-400.0,0.00020547,2]
[359292215,1745895058887,-2584.83,0.00020547,2]
[359292216,1745895058898,-678.98,0.00020547,2]
[359292217,1745895058909,-400.0,0.00020547,2]
[359292218,1745895058920,-439.82,0.00020547,2]
[359292219,1745895058931,-955.03,0.00020547,2]
[359292220,1745895058943,-523.20239291,0.00020547,2]
[359292221,1745895058954,-766.32,0.00020547,2]
[359292222,1745895058964,-6668.64,0.00020547,2]
[359292223,1745895058975,-442.16,0.00020547,2]
[359292224,1745895058987,-551.05,0.00020547,2]
[359292225,1745895058997,-524.40553012,0.00020547,2]
[359292226,1745895059009,-400.0,0.00020547,2]
[359292227,1745895059021,-537.08,0.00020547,2]
[359292228,1745895059031,-3355.31,0.00020547,2]
[359292229,1745895059041,-2006.54,0.00020547,2]
[359292230,1745895059052,-3239.15,0.00020547,2]
[359292231,1745895059063,-987.36,0.00020547,2]
[359292232,1745895059073,-698.16,0.00020547,2]
[359292233,1745895059085,-400.0,0.00020547,2]
[359292234,1745895059095,-400.0,0.00020547,2]
[359292235,1745895059106,-553.03,0.00020547,2]
[359292236,1745895059116,-1169.74,0.00020547,2]
[359292237,1745895059127,-525.45,0.00020547,2]
[359292238,1745895059137,-463.88,0.00020547,2]
[359292239,1745895059147,-7395.98,0.00020547,2]
[359292240,1745895059157,-236.14143743,0.00020547,2]
[359292241,1745895059168,-452.14,0.00020547,2]
[359292242,1745895059178,-432.94,0.00020547,2]
[359292243,1745895059188,-1427.37,0.00020547,2]
[359292244,1745895059199,-400.0,0.00020547,2]
[359292245,1745895059209,-749.28,0.00020547,2]
[359292246,1745895059219,-860.74,0.00020547,2]
[359292247,1745895059229,-4743.97,0.00020547,2]
[359292248,1745895059245,-400.0,0.00020547,2]
[359292249,1745895059255,-526.1,0.00020547,2]
[359292250,1745895059265,-400.0,0.00020547,2]
[359292251,1745895059274,-206.16531602,0.00020547,2]
[359292252,1745895059284,-400.0,0.00020547,2]
[359292253,1745895059294,-400.0,0.00020547,2]
[359292254,1745895059304,-400.0,0.00020547,2]
[359292255,1745895059313,-872.3,0.00020547,2]
[359292256,1745895059323,-400.0,0.00020547,2]
[359292257,1745895059333,-3365.85,0.00020547,2]
[359292258,1745895059342,-1000.95,0.00020547,2]
[359292259,1745895059352,-487.83,0.00020547,2]
[359292260,1745895059362,-1244.56,0.00020547,2]
[359292261,1745895059372,-469.84,0.00020547,2]
[359292262,1745895059385,-875.34,0.00020547,2]
[359292263,1745895059395,-640.42,0.00020547,2]
[359292264,1745895059405,-1261.65,0.00020547,2]
[359292265,1745895059416,-3239.48,0.00020547,2]
[359292266,1745895059427,-1109.21,0.00020547,2]
[359292267,1745895059438,-411.22,0.00020547,2]
[359292268,1745895059450,-554.53,0.00020547,2]
[359292269,1745895059461,-1153.01,0.00020547,2]
[359292270,1745895059471,-1267.34,0.00020547,2]
[359292271,1745895059481,-400.0,0.00020547,2]
[359292272,1745895059491,-400.0,0.00020547,2]
[359292273,1745895059502,-849.2,0.00020547,2]
[359292274,1745895059514,-400.0,0.00020547,2]
[359292275,1745895059525,-400.0,0.00020547,2]
[359292276,1745895059535,-3427.99,0.00020547,2]
[359292277,1745895059546,-4464.15,0.00020547,2]
[359292278,1745895059556,-1117.04,0.00020547,2]
[359292279,1745895059566,-400.0,0.00020547,2]
[359292280,1745895059575,-1318.47,0.00020547,2]
[359292281,1745895059585,-400.0,0.00020547,2]
[359292282,1745895059595,-400.0,0.00020547,2]
[359292283,1745895059604,-3820.83,0.00020547,2]
[359292284,1745895059614,-400.0,0.00020547,2]
[359292285,1745895059623,-1545.17,0.00020547,2]
[359292286,1745895059633,-860.06,0.00020547,2]
[359292287,1745895059643,-400.0,0.00020547,2]
[359292288,1745895059652,-2803.25,0.00020547,2]
[359292289,1745895059662,-431.85054446,0.00020547,2]
[359292290,1745895059672,-400.0,0.00020547,2]
[359292291,1745895059681,-400.0,0.00020547,2]
[359292292,1745895059691,-518.37,0.00020547,2]
[359292293,1745895059701,-579.08,0.00020547,2]
[359292294,1745895059710,-400.0,0.00020547,2]
[359292295,1745895059720,-724.34,0.00020547,2]
[359292296,1745895059729,-786.22,0.00020547,2]
[359292297,1745895059739,-153.0,0.00020685,2]
[359292298,1745895059749,-153.0,0.00020685,2]
[359292299,1745895059759,-153.0,0.00020685,2]
[359292300,1745895059773,-153.0,0.00020685,2]
[359292301,1745895059782,-306.0,0.00020685,2]
[359292302,1745895059792,-153.0,0.00020685,2]
[359292303,1745895059802,-153.0,0.00020685,2]
[359292304,1745895059812,-153.0,0.00020685,2]
[359292305,1745895059822,-153.0,0.00020685,2]
[359292306,1745895059831,-153.0,0.00020685,2]
[359292307,1745895059841,-153.0,0.00020685,2]
[359292308,1745895059851,-153.0,0.00020685,2]
[359292309,1745895059861,-153.0,0.00020685,2]
[359292310,1745895059871,-160.0,0.000207,6]
[359292311,1745895059881,-400.0,0.00020821,2]
[359292312,1745895059891,-487.53,0.00020821,2]
[359292313,1745895059900,-400.0,0.00020821,2]
[359292314,1745895059910,-400.0,0.00020821,2]
[359292315,1745895059920,-458.4766912,0.00020821,2]
[359292316,1745895059930,-400.0,0.00020821,2]
[359292317,1745895059940,-400.0,0.00020821,2]
[359292318,1745895059951,-400.0,0.00020821,2]
[359292319,1745895059961,-400.0,0.00020821,2]
[359292320,1745895059971,-436.05,0.00020821,2]
[359292321,1745895059981,-488.77,0.00020821,2]
[359292322,1745895059991,-400.0,0.00020821,2]
[359292323,1745895060002,-509.61,0.00020821,2]
[359292324,1745895060012,-210.6700765,0.00020821,2]
[359292325,1745895060022,-400.0,0.00020821,2]
[359292326,1745895060032,-400.0,0.00020821,2]
[359292327,1745895060042,-400.0,0.00020821,2]
[359292328,1745895060052,-268.75387008,0.00020821,2]
[359292329,1745895060063,-400.0,0.00020821,2]
[359292330,1745895060074,-400.0,0.00020821,2]
[359292331,1745895060085,-461.52,0.00020821,2]
[359292332,1745895060095,-400.0,0.00020821,2]
[359292333,1745895060104,-664.65,0.00020821,2]
[359292334,1745895060115,-421.91,0.00020821,2]
[359292335,1745895060124,-400.0,0.00020821,2]
[359292336,1745895060135,-549.52,0.00020821,2]
[359292337,1745895060145,-400.0,0.00020821,2]
[359292338,1745895060155,-400.0,0.00020821,2]
[359292339,1745895060165,-400.0,0.00020821,2]
[359292340,1745895060175,-400.0,0.00020821,2]
[359292341,1745895060190,-207.83721366,0.00020821,2]
[359292342,1745895060212,-400.0,0.00020821,2]
[359292343,1745895060233,-400.0,0.00020821,2]
[359292344,1745895060256,-400.0,0.00020821,2]
[359292345,1745895060278,-680.91,0.00020821,2]
[359292346,1745895060301,-400.0,0.00020821,2]
[359292347,1745895060325,-400.0,0.00020821,2]
[359292348,1745895060346,-470.27,0.00020821,2]
[359292349,1745895060368,-869.9,0.00020821,2]
[359292350,1745895060393,-400.0,0.00020821,2]
[359292351,1745895060418,-752.0,0.00020821,2]
[359292352,1745895060611,-953.01,0.00020821,2]
[359292353,1745895060621,-729.63,0.00020821,2]
[359292354,1745895060630,-681.93,0.00020821,2]
[359292355,1745895060640,-459.23,0.00020821,2]
[359292356,1745895060650,-400.0,0.00020821,2]
[359292357,1745895060659,-400.0,0.00020821,2]
[359292358,1745895060669,-400.0,0.00020821,2]
[359292359,1745895060678,-435.14,0.00020821,2]
[359292360,1745895060688,-400.0,0.00020821,2]
[359292361,1745895060699,-400.0,0.00020821,2]
[359292362,1745895060708,-788.65,0.00020821,2]
[359292363,1745895060717,-400.0,0.00020821,2]
[359292364,1745895060727,-400.0,0.00020821,2]
[359292365,1745895060737,-400.0,0.00020821,2]
[359292366,1745895060746,-445.55,0.00020821,2]
[359292367,1745895060756,-431.43,0.00020821,2]
[359292368,1745895060766,-400.0,0.00020821,2]
[359292369,1745895060779,-1347.66,0.00020821,2]
[359292370,1745895060788,-1253.61,0.00020821,2]
[359292371,1745895060797,-400.0,0.00020821,2]
[359292372,1745895060807,-482.37,0.00020821,2]
[359292373,1745895060817,-907.73,0.00020821,2]
[359292374,1745895060827,-544.05,0.00020821,2]
[359292375,1745895060836,-400.0,0.00020821,2]
[359292376,1745895060847,-207.34649214,0.00020821,2]
[359292377,1745895060857,-722.03,0.00020821,2]
[359292378,1745895060866,-400.0,0.00020821,2]
[359292379,1745895060875,-400.0,0.00020821,2]
[359292380,1745895060885,-209.74475488,0.00020821,2]
[359292381,1745895060894,-151.0,0.00020821,2]
[359292382,1745895060904,-1165.36,0.00020821,2]
[359292383,1745895060913,-209.29237819,0.00020821,2]
[359292384,1745895060923,-1527.24,0.00020821,2]
[359292385,1745895060934,-155.717953,0.00020821,2]
[359292386,1745895060944,-400.0,0.00020821,2]
[359292387,1745895060954,-546.75,0.00020821,2]
[359292388,1745895060964,-151.0,0.00020821,2]
[359292389,1745895060974,-1024.81,0.00020821,2]
[359292390,1745895060984,-151.0,0.00020821,2]
[359292391,1745895060995,-725.57,0.00020821,2]
[359292392,1745895061006,-400.0,0.00020821,2]
[359292393,1745895061016,-532.63,0.00020821,2]
[359292394,1745895061027,-400.0,0.00020821,2]
[359292395,1745895061036,-2190.4,0.00020821,2]
[359292396,1745895061045,-773.49,0.00020821,2]
[359292397,1745895061054,-1123.88,0.00020821,2]
[359292398,1745895061063,-1018.81,0.00020821,2]
[359292399,1745895061074,-446.16,0.00020821,2]
[359292400,1745895061083,-400.0,0.00020821,2]
[359292401,1745895061093,-829.58,0.00020821,2]
[359292402,1745895061103,-939.54,0.00020821,2]
[359292403,1745895061112,-1040.02,0.00020821,2]
[359292404,1745895061122,-400.0,0.00020821,2]
[359292405,1745895061131,-400.0,0.00020821,2]
[359292406,1745895061141,-523.99,0.00020821,2]
[359292407,1745895061151,-400.0,0.00020821,2]
[359292408,1745895061161,-886.27,0.00020821,2]
[359292409,1745895061170,-1563.19,0.00020821,2]
[359292410,1745895061179,-8641.78,0.00020821,2]
[359292411,1745895061190,-400.0,0.00020821,2]
[359292412,1745895061201,-7203.64,0.00020821,2]
[359292413,1745895061210,-1391.33,0.00020821,2]
[359292414,1745895061220,-474.03,0.00020821,2]
[359292415,1745895061229,-400.0,0.00020821,2]
[359292416,1745895061239,-426.98,0.00020821,2]
[359292417,1745895061248,-2841.42,0.00020821,2]
[359292418,1745895061257,-400.0,0.00020821,2]
[359292419,1745895061267,-400.0,0.00020821,2]
[359292420,1745895061276,-400.0,0.00020821,2]
[359292421,1745895061285,-400.0,0.00020821,2]
[359292422,1745895061295,-400.0,0.00020821,2]
[359292423,1745895061304,-400.0,0.00020821,2]
[359292424,1745895061313,-400.0,0.00020821,2]
[359292425,1745895061323,-209.73452673,0.00020821,2]
[359292426,1745895061332,-400.0,0.00020821,2]
[359292427,1745895061342,-492.39,0.00020821,2]
[359292428,1745895061351,-400.0,0.00020821,2]
[359292429,1745895061360,-529.61,0.00020821,2]
[359292430,1745895061370,-400.0,0.00020821,2]
[359292431,1745895061379,-862.45,0.00020821,2]
[359292432,1745895061388,-1502.82,0.00020821,2]
[359292433,1745895061398,-688.34,0.00020821,2]
[359292434,1745895061407,-683.34,0.00020821,2]
[359292435,1745895061417,-400.0,0.00020821,2]
[359292436,1745895061426,-922.98,0.00020821,2]
[359292437,1745895061435,-460.66,0.00020821,2]
[359292438,1745895061445,-1731.73,0.00020821,2]
[359292439,1745895061454,-688.59,0.00020821,2]
[359292440,1745895061464,-400.0,0.00020821,2]
[359292441,1745895061473,-896.35,0.00020821,2]
[359292442,1745895061482,-1244.71,0.00020821,2]
[359292443,1745895061492,-400.0,0.00020821,2]
[359292444,1745895061501,-1243.65,0.00020821,2]
[359292445,1745895061510,-400.0,0.00020821,2]
[359292446,1745895061519,-400.0,0.00020821,2]
[359292447,1745895061529,-329.78233583,0.00020821,2]
[359292448,1745895061538,-400.0,0.00020821,2]
[359292449,1745895061548,-2584.83,0.00020821,2]
[359292450,1745895061557,-678.98,0.00020821,2]
[359292451,1745895061567,-400.0,0.00020821,2]
[359292452,1745895061576,-439.82,0.00020821,2]
[359292453,1745895061586,-955.03,0.00020821,2]
[359292454,1745895061595,-766.32,0.00020821,2]
[359292455,1745895061604,-6668.64,0.00020821,2]
[359292456,1745895061613,-442.16,0.00020821,2]
[359292457,1745895061622,-551.05,0.00020821,2]
[359292458,1745895061632,-400.0,0.00020821,2]
[359292459,1745895061641,-537.08,0.00020821,2]
[359292460,1745895061650,-3355.31,0.00020821,2]
[359292461,1745895061659,-2006.54,0.00020821,2]
[359292462,1745895061668,-3239.15,0.00020821,2]
[359292463,1745895061678,-987.36,0.00020821,2]
[359292464,1745895061687,-698.16,0.00020821,2]
[359292465,1745895061697,-400.0,0.00020821,2]
[359292466,1745895061706,-400.0,0.00020821,2]
[359292467,1745895061715,-1169.74,0.00020821,2]
[359292468,1745895061725,-553.03,0.00020821,2]
[359292469,1745895061734,-525.45,0.00020821,2]
[359292470,1745895061743,-463.88,0.00020821,2]
[359292471,1745895061752,-7395.98,0.00020821,2]
[359292472,1745895061764,-452.14,0.00020821,2]
[359292473,1745895061773,-432.94,0.00020821,2]
[359292474,1745895061782,-1427.37,0.00020821,2]
[359292475,1745895061792,-400.0,0.00020821,2]
[359292476,1745895061802,-749.28,0.00020821,2]
[359292477,1745895061811,-860.74,0.00020821,2]
[359292478,1745895061820,-4743.97,0.00020821,2]
[359292479,1745895061829,-400.0,0.00020821,2]
[359292480,1745895061839,-526.1,0.00020821,2]
[359292481,1745895061849,-400.0,0.00020821,2]
[359292482,1745895061860,-400.0,0.00020821,2]
[359292483,1745895061869,-400.0,0.00020821,2]
[359292484,1745895061879,-400.0,0.00020821,2]
[359292485,1745895061888,-872.3,0.00020821,2]
[359292486,1745895061898,-220.53088416,0.00020821,2]
[359292487,1745895061907,-3365.85,0.00020821,2]
[359292488,1745895061917,-1000.95,0.00020821,2]
[359292489,1745895061926,-487.83,0.00020821,2]
[359292490,1745895061936,-1244.56,0.00020821,2]
[359292491,1745895061945,-469.84,0.00020821,2]
[359292492,1745895061955,-875.34,0.00020821,2]
[359292493,1745895061964,-640.42,0.00020821,2]
[359292494,1745895061973,-1261.65,0.00020821,2]
[359292495,1745895061983,-3239.48,0.00020821,2]
[359292496,1745895061992,-1109.21,0.00020821,2]
[359292497,1745895062002,-411.22,0.00020821,2]
[359292498,1745895062011,-554.53,0.00020821,2]
[359292499,1745895062022,-1153.01,0.00020821,2]
[359292500,1745895062031,-1267.34,0.00020821,2]
[359292501,1745895062040,-400.0,0.00020821,2]
[359292502,1745895062050,-400.0,0.00020821,2]
[359292503,1745895062059,-849.2,0.00020821,2]
[359292504,1745895062069,-400.0,0.00020821,2]
[359292505,1745895062078,-400.0,0.00020821,2]
[359292506,1745895062088,-3427.99,0.00020821,2]
[359292507,1745895062099,-4464.15,0.00020821,2]
[359292508,1745895062108,-1117.04,0.00020821,2]
[359292509,1745895062118,-400.0,0.00020821,2]
[359292510,1745895062128,-1318.47,0.00020821,2]
[359292511,1745895062139,-400.0,0.00020821,2]
[359292512,1745895062149,-400.0,0.00020821,2]
[359292513,1745895062158,-3820.83,0.00020821,2]
[359292514,1745895062168,-400.0,0.00020821,2]
[359292515,1745895062177,-1545.17,0.00020821,2]
[359292516,1745895062187,-860.06,0.00020821,2]
[359292517,1745895062197,-400.0,0.00020821,2]
[359292518,1745895062206,-2803.25,0.00020821,2]
[359292519,1745895062216,-400.0,0.00020821,2]
[359292520,1745895062226,-400.0,0.00020821,2]
[359292521,1745895062235,-518.37,0.00020821,2]
[359292522,1745895062244,-579.08,0.00020821,2]
[359292523,1745895062254,-400.0,0.00020821,2]
[359292524,1745895062263,-724.34,0.00020821,2]
[359292525,1745895062272,-786.22,0.00020821,2]
[359292526,1745895062282,-600.0,0.00020822,2]
[359292527,1745895062291,-420.0,0.00020888,2]
[359292528,1745895062300,-43297.07394569,0.00021,2]
[359292529,1745895062309,-604.441,0.00021,2]
[359292530,1745895062319,-193.55223015,0.00021,2]
[359292531,1745895062328,-160.0,0.00021,7]
[359292532,1745895062338,-260.54571229,0.00021,5]
[359292533,1745895062347,-157.67,0.00021,2]
[359292534,1745895062356,-160.0,0.00021085,2]
[359292535,1745895062364,-313.35099139,0.00021085,2]
[359292536,1745895062373,-184.639,0.00021094,2]
[359292537,1745895062382,-400.0,0.00021095,2]
[359292538,1745895062391,-487.53,0.00021095,2]
[359292539,1745895062400,-400.0,0.00021095,2]
[359292540,1745895062409,-400.0,0.00021095,2]
[359292541,1745895062418,-400.0,0.00021095,2]
[359292542,1745895062428,-509.12920953,0.00021095,2]
[359292543,1745895062438,-400.0,0.00021095,2]
[359292544,1745895062451,-400.0,0.00021095,2]
[359292545,1745895062460,-436.05,0.00021095,2]
[359292546,1745895062471,-488.77,0.00021095,2]
[359292547,1745895062480,-165.65841124,0.00021095,2]
[359292548,1745895062489,-509.61,0.00021095,2]
[359292549,1745895062499,-409.76318957,0.00021095,2]
[359292550,1745895062509,-310.66769068,0.00021095,2]
[359292551,1745895062518,-308.23432746,0.00021095,2]
[359292552,1745895062528,-305.67000916,0.00021095,2]
[359292553,1745895062538,-548.88386555,0.00021095,2]
[359292554,1745895062550,-461.52,0.00021095,2]
[359292555,1745895062561,-400.0,0.00021095,2]
[359292556,1745895062572,-664.65,0.00021095,2]
[359292557,1745895062583,-421.91,0.00021095,2]
[359292558,1745895062593,-400.0,0.00021095,2]
[359292559,1745895062603,-549.52,0.00021095,2]
[359292560,1745895062613,-400.0,0.00021095,2]
[359292561,1745895062623,-400.0,0.00021095,2]
[359292562,1745895062633,-400.0,0.00021095,2]
[359292563,1745895062643,-400.0,0.00021095,2]
[359292564,1745895062653,-400.0,0.00021095,2]
[359292565,1745895062664,-403.41847976,0.00021095,2]
[359292566,1745895062674,-400.0,0.00021095,2]
[359292567,1745895062684,-680.91,0.00021095,2]
[359292568,1745895062698,-400.0,0.00021095,2]
[359292569,1745895062711,-400.0,0.00021095,2]
[359292570,1745895062721,-470.27,0.00021095,2]
[359292571,1745895062734,-869.9,0.00021095,2]
[359292572,1745895062743,-400.0,0.00021095,2]
[359292573,1745895062758,-752.0,0.00021095,2]
[359292574,1745895062781,-953.01,0.00021095,2]
[359292575,1745895062804,-729.63,0.00021095,2]
[359292576,1745895062827,-681.93,0.00021095,2]
[359292577,1745895062849,-459.23,0.00021095,2]
[359292578,1745895062872,-321.87858538,0.00021095,2]
[359292579,1745895062896,-427.80089448,0.00021095,2]
[359292580,1745895062920,-400.0,0.00021095,2]
[359292581,1745895062947,-435.14,0.00021095,2]
[359292582,1745895062969,-400.0,0.00021095,2]
[359292583,1745895062993,-400.0,0.00021095,2]
[359292584,1745895063016,-788.65,0.00021095,2]
[359292585,1745895063041,-400.0,0.00021095,2]
[359292586,1745895063064,-400.0,0.00021095,2]
[359292587,1745895063083,-400.0,0.00021095,2]
[359292588,1745895063094,-445.55,0.00021095,2]
[359292589,1745895063104,-431.43,0.00021095,2]
[359292590,1745895063114,-400.0,0.00021095,2]
[359292591,1745895063125,-1253.61,0.00021095,2]
[359292592,1745895063135,-1347.66,0.00021095,2]
[359292593,1745895063145,-400.0,0.00021095,2]
[359292594,1745895063155,-482.37,0.00021095,2]
[359292595,1745895063166,-907.73,0.00021095,2]
[359292596,1745895063176,-544.05,0.00021095,2]
[359292597,1745895063186,-400.0,0.00021095,2]
[359292598,1745895063197,-722.03,0.00021095,2]
[359292599,1745895063208,-400.0,0.00021095,2]
[359292600,1745895063217,-400.0,0.00021095,2]
[359292601,1745895063227,-1165.36,0.00021095,2]
[359292602,1745895063237,-1527.24,0.00021095,2]
[359292603,1745895063247,-400.0,0.00021095,2]
[359292604,1745895063257,-546.75,0.00021095,2]
[359292605,1745895063267,-1024.81,0.00021095,2]
[359292606,1745895063276,-725.57,0.00021095,2]
[359292607,1745895063286,-400.0,0.00021095,2]
[359292608,1745895063296,-532.63,0.00021095,2]
[359292609,1745895063306,-400.0,0.00021095,2]
[359292610,1745895063316,-2190.4,0.00021095,2]
[359292611,1745895063326,-773.49,0.00021095,2]
[359292612,1745895063336,-1123.88,0.00021095,2]
[359292613,1745895063346,-1018.81,0.00021095,2]
[359292614,1745895063357,-400.0,0.00021095,2]
[359292615,1745895063368,-446.16,0.00021095,2]
[359292616,1745895063378,-829.58,0.00021095,2]
[359292617,1745895063388,-939.54,0.00021095,2]
[359292618,1745895063398,-1040.02,0.00021095,2]
[359292619,1745895063407,-400.0,0.00021095,2]
[359292620,1745895063417,-400.0,0.00021095,2]
[359292621,1745895063427,-523.99,0.00021095,2]
[359292622,1745895063437,-400.0,0.00021095,2]
[359292623,1745895063449,-886.27,0.00021095,2]
[359292624,1745895063459,-1563.19,0.00021095,2]
[359292625,1745895063469,-8641.78,0.00021095,2]
[359292626,1745895063478,-400.0,0.00021095,2]
[359292627,1745895063488,-7165.90414189,0.00021095,2]
[359292628,1745895063690,-37.73585811,0.00021095,2]
[359292629,1745895063702,-1391.33,0.00021095,2]
[359292630,1745895063712,-474.03,0.00021095,2]
[359292631,1745895063723,-268.7645493,0.00021095,2]
[359292632,1745895063733,-426.98,0.00021095,2]
[359292633,1745895063742,-2841.42,0.00021095,2]
[359292634,1745895063752,-400.0,0.00021095,2]
[359292635,1745895063762,-400.0,0.00021095,2]
[359292636,1745895063774,-400.0,0.00021095,2]
[359292637,1745895063785,-400.0,0.00021095,2]
[359292638,1745895063794,-400.0,0.00021095,2]
[359292639,1745895063805,-400.0,0.00021095,2]
[359292640,1745895063814,-400.0,0.00021095,2]
[359292641,1745895063824,-400.0,0.00021095,2]
[359292642,1745895063834,-492.39,0.00021095,2]
[359292643,1745895063844,-301.3612953,0.00021095,2]
[359292644,1745895063855,-529.61,0.00021095,2]
[359292645,1745895063865,-400.0,0.00021095,2]
[359292646,1745895063875,-862.45,0.00021095,2]
[359292647,1745895063886,-1502.82,0.00021095,2]
[359292648,1745895063895,-688.34,0.00021095,2]
[359292649,1745895063905,-683.34,0.00021095,2]
[359292650,1745895063915,-400.0,0.00021095,2]
[359292651,1745895063924,-922.98,0.00021095,2]
[359292652,1745895063934,-460.66,0.00021095,2]